fUST/lending_fUST_20250827
["ID","MTS","AMOUNT","RATE_DAILY","PERIOD"]
[381475732,1756230647758,-933.0,0.00033665,2]
[381475734,1756230647767,-638.0,0.00033665,2]
[381475736,1756230647777,-2156.0,0.00033665,2]
[381475738,1756230647787,-150.0,0.00033665,2]
[381475741,1756230647797,-409.0,0.00033665,2]
[381475743,1756230647807,-414.484,0.00033665,2]
[381475745,1756230647817,-2607.78,0.000337,7]
[381475747,1756230647826,-209.40437684,0.00033709,2]
[381475749,1756230647836,-1532.10708423,0.00033712,21]
[381475751,1756230647846,-860.0,0.00033836,2]
[381475753,1756230647856,-500.0,0.00033933,2]
[381475755,1756230647866,-29637.95,0.00034,14]
[381475757,1756230647876,-500.0,0.00034207,2]
[381475782,1756230648095,-200.0,0.00034232,120]
[381475784,1756230648105,-960.0,0.00034384,2]
[381475786,1756230648115,-528.0,0.00034481,2]
[381475788,1756230648125,-526.011568,0.00034521,120]
[381475790,1756230648134,-179.0,0.00034521,30]
[381475793,1756230648145,-150.447719,0.00034547,20]
[381475794,1756230648154,-1060.0,0.00034932,2]
[381475797,1756230648164,-250.0,0.00035,7]
[381475799,1756230648174,-3511.35,0.00035,7]
[381475801,1756230648184,-217.15233878,0.00035078,2]
[381475803,1756230648194,-5321.26625538,0.00035293,2]
[381475805,1756230648204,-1532.10708423,0.00035439,24]
[381475807,1756230648214,-1160.0,0.00035479,2]
[381475809,1756230648224,-500.0,0.00035616,7]
[381475811,1756230648234,-500.0,0.00035616,7]
[381475813,1756230648244,-500.0,0.00035616,7]
[381475815,1756230648253,-634.94630099,0.00035616,7]
[381475817,1756230648263,-178.9548242,0.00035616,2]
[381475819,1756230648272,-195.869,0.00035671,2]
[381475821,1756230648282,-202.411,0.00035671,2]
[381475823,1756230648292,-246.0,0.00035671,2]
[381475825,1756230648302,-243.2161808,0.00036027,2]
[381475827,1756230648312,-5015.23,0.000361,14]
[381475829,1756230648322,-2607.78,0.000361,7]
[381475831,1756230648332,-823.0,0.00036173,2]
[381475833,1756230648342,-168.53752178,0.00036416,120]
[381475835,1756230648352,-150.447719,0.00036434,2]
[381475837,1756230648362,-225.18697532,0.00036447,2]
[381475840,1756230648372,-160.0,0.00036464,3]
[381475842,1756230648382,-933.0,0.00036665,2]
[381475844,1756230648393,-638.0,0.00036665,2]
[381475846,1756230648403,-2156.0,0.00036665,2]
[381475848,1756230648413,-409.0,0.00036665,2]
[381475850,1756230648423,-409.0,0.00036665,2]
[381475852,1756230648432,-29637.95,0.000367,14]
[381475854,1756230648443,-500.0,0.00036884,13]
[381475856,1756230648453,-150.447719,0.0003705,4]
[381475858,1756230648463,-150.447719,0.00037098,20]
[381475860,1756230648473,-1532.10708423,0.00037166,28]
[381475862,1756230648484,-3511.35,0.000374,7]
[381475865,1756230648494,-233.51889341,0.00037816,2]
[381475867,1756230648503,-250.0,0.00038356,2]
[381475869,1756230648513,-500.0,0.00038356,120]
[381475871,1756230648523,-380.72074823,0.00038356,120]
[381475873,1756230648532,-150.0,0.00038671,2]
[381475875,1756230648542,-150.447719,0.00038677,2]
[381475877,1756230648551,-1532.10708423,0.00038892,32]
[381475879,1756230648561,-500.0,0.00038903,7]
[381475881,1756230648571,-500.0,0.00038904,120]
[381475883,1756230648581,-5015.23,0.00039,14]
[381475885,1756230648591,-2607.78,0.00039,7]
[381475887,1756230648601,-1152.0,0.00039036,5]
[381475889,1756230648610,-242.15909246,0.00039185,2]
[381475891,1756230648620,-160.0,0.00039392,4]
[381475893,1756230648630,-4000.0,0.00039436,8]
[381475896,1756230648644,-500.0,0.00039452,120]
[381475897,1756230648654,-526.011568,0.00039452,120]
[381475899,1756230648664,-1000.0,0.000395,2]
[381475902,1756230648675,-150.447719,0.00039525,4]
[381475904,1756230648684,-150.447719,0.00039649,20]
[381475906,1756230648694,-400.317836,0.00039654,2]
[381475908,1756230648703,-933.0,0.00039665,2]
[381475910,1756230648716,-638.0,0.00039665,2]
[381475912,1756230648726,-2156.0,0.00039665,2]
[381475914,1756230648735,-409.0,0.00039665,2]
[381475916,1756230648745,-409.0,0.00039665,2]
[381475918,1756230648756,-29637.95,0.000397,14]
[381475920,1756230648765,-500.0,0.00039725,7]
[381475922,1756230648775,-5321.26625538,0.00039786,2]
[381475924,1756230648785,-150.0,0.00039818,2]
[381475926,1756230648795,-126685.52758769,0.00039886,2]
[381475928,1756230648806,-151.0,0.00039886,30]
[381475931,1756230648817,-151.0,0.00039886,30]
[381475933,1756230648827,-151.0,0.00039886,30]
[381475935,1756230648844,-151.0,0.00039886,30]
[381475937,1756230648856,-151.0,0.00039886,30]
[381475939,1756230648866,-151.0,0.00039886,30]
[381475941,1756230648876,-151.0,0.00039886,30]
[381475943,1756230648886,-151.0,0.00039886,30]
[381475945,1756230648895,-151.0,0.00039886,30]
[381475947,1756230648905,-151.0,0.00039886,30]
[381475949,1756230648915,-151.0,0.00039886,30]
[381475951,1756230648924,-151.0,0.00039886,30]
[381475953,1756230648935,-151.0,0.00039886,30]
[381475955,1756230648945,-151.0,0.00039886,30]
[381475957,1756230648955,-151.0,0.00039886,30]
[381475959,1756230648965,-182.416024,0.00039886,30]
[381475961,1756230648975,-182.416024,0.00039886,30]
[381475963,1756230648984,-182.416024,0.00039886,30]
[381475965,1756230648994,-182.416016,0.00039886,30]
[381475967,1756230649003,-151.0,0.00039886,30]
[381475969,1756230649014,-151.0,0.00039886,30]
[381475971,1756230649023,-151.0,0.00039886,30]
[381475973,1756230649033,-187.821714,0.00039886,30]
[381475975,1756230649043,-151.0,0.00039886,30]
[381475977,1756230649053,-151.0,0.00039886,30]
[381475979,1756230649063,-151.0,0.00039886,30]
[381475981,1756230649072,-151.0,0.00039886,30]
[381475983,1756230649082,-151.0,0.00039886,30]
[381475985,1756230649091,-151.0,0.00039886,30]
[381475987,1756230649101,-212.94064106,0.000399,120]
[381475989,1756230649111,-500.0,0.00039974,7]
[381475991,1756230649121,-150.0,0.00039984,2]
[381475993,1756230649131,-500.0,0.0004,120]
[381475996,1756230649141,-900.0,0.00040084,30]
[381475998,1756230649151,-500.0,0.00040086,30]
[381476000,1756230649161,-500.0,0.0004009,30]
[381476002,1756230649171,-3511.35,0.000401,7]
[381476004,1756230649182,-240.52,0.00040121,7]
[381476006,1756230649191,-212.94064104,0.00040133,120]
[381476008,1756230649201,-261.21,0.00040149,2]
[381476010,1756230649210,-600.0,0.0004024,2]
[381476012,1756230649219,-500.0,0.00040307,30]
[381476014,1756230649229,-500.0,0.00040315,30]
[381476016,1756230649238,-8629.62995869,0.00040331,10]
[381476018,1756230649249,-500.0,0.00040354,30]
[381476020,1756230649258,-900.0,0.00040387,30]
[381476022,1756230649268,-2607.78,0.000404,7]
[381476024,1756230649278,-203.0,0.0004043,55]
[381476026,1756230649287,-212.94064104,0.00040481,120]
[381476028,1756230649298,-200.0,0.00040504,120]
[381476030,1756230649307,-500.0,0.00040547,120]
[381476032,1756230649317,-251.11897888,0.00040554,2]
[381476034,1756230649327,-1532.10708423,0.00040619,36]
[381476036,1756230649337,-2200.0,0.00040625,14]
[381476038,1756230649348,-600.0,0.00040659,2]
[381476040,1756230649357,-800.0,0.0004068,7]
[381476042,1756230649367,-162.0,0.000407,120]
[381476044,1756230649377,-900.0,0.00040701,30]
[381476047,1756230649387,-150.447719,0.00040703,61]
[381476049,1756230649396,-162.62,0.00040767,2]
[381476051,1756230649407,-212.94064104,0.00040828,120]
[381476053,1756230649417,-150.447719,0.0004092,2]
[381476055,1756230649427,-152.671269,0.0004092,2]
[381476057,1756230649437,-153.0,0.00040924,30]
[381476059,1756230649447,-153.0,0.00040929,30]
[381476061,1756230649458,-153.0,0.00040969,30]
[381476063,1756230649468,-153.0,0.00040975,30]
[381476065,1756230649489,-191.429803,0.00041,2]
[381476067,1756230649512,-529.4218694,0.00041,10]
[381476069,1756230649533,-529.4218694,0.00041,30]
[381476071,1756230649554,-232.53539143,0.00041,10]
[381476073,1756230649566,-417.15472785,0.00041,10]
[381476075,1756230649576,-417.15472785,0.00041,30]
[381476077,1756230649586,-500.0,0.00041007,30]
[381476079,1756230649595,-900.0,0.00041041,30]
[381476081,1756230649605,-592.11937755,0.00041073,5]
[381476083,1756230649614,-501.38178286,0.00041073,5]
[381476085,1756230649624,-500.0,0.00041073,2]
[381476087,1756230649634,-204.87366848,0.00041073,5]
[381476089,1756230649648,-600.0,0.00041079,2]
[381476091,1756230649659,-845.99,0.00041095,120]
[381476093,1756230649668,-480.0,0.00041095,120]
[381476095,1756230649679,-480.0,0.00041095,120]
[381476097,1756230649688,-480.0,0.00041095,120]
[381476099,1756230649698,-480.0,0.00041095,120]
[381476101,1756230649707,-480.0,0.00041095,120]
[381476103,1756230649717,-480.0,0.00041095,120]
[381476105,1756230649726,-480.0,0.00041095,120]
[381476107,1756230649735,-480.0,0.00041095,120]
[381476109,1756230649744,-480.0,0.00041095,120]
[381476111,1756230649755,-528.84,0.00041095,120]
[381476113,1756230649764,-480.0,0.00041095,120]
[381476115,1756230649774,-480.0,0.00041095,120]
[381476117,1756230649783,-480.78342812,0.00041095,120]
[381476119,1756230649792,-480.0,0.00041095,120]
[381476120,1756230649803,-1343.75,0.00041095,120]
[381476122,1756230649814,-480.0,0.00041095,120]
[381476124,1756230649823,-480.0,0.00041095,120]
[381476126,1756230649834,-480.0,0.00041095,120]
[381476128,1756230649845,-480.0,0.00041095,120]
[381476130,1756230649854,-480.0,0.00041095,120]
[381476132,1756230649864,-573.71,0.00041095,120]
[381476134,1756230649873,-480.0,0.00041095,30]
[381476136,1756230649883,-957.49,0.00041095,120]
[381476138,1756230649893,-480.0,0.00041095,120]
[381476140,1756230649902,-480.0,0.00041095,120]
[381476142,1756230649912,-513.73386838,0.00041095,120]
[381476144,1756230649922,-480.0,0.00041095,120]
[381476146,1756230649931,-480.0,0.00041095,120]
[381476148,1756230649951,-629.25,0.00041095,120]
[381476150,1756230649961,-480.0,0.00041095,120]
[381476152,1756230649970,-480.0,0.00041095,120]
[381476154,1756230649981,-480.0,0.00041095,7]
[381476156,1756230649991,-480.0,0.00041095,120]
[381476158,1756230650001,-480.0,0.00041095,120]
[381476160,1756230650010,-480.0,0.00041095,120]
[381476162,1756230650020,-480.0,0.00041095,120]
[381476164,1756230650030,-480.0,0.00041095,120]
[381476166,1756230650039,-480.0,0.00041095,120]
[381476168,1756230650050,-480.0,0.00041095,120]
[381476170,1756230650060,-480.0,0.00041095,120]
[381476172,1756230650069,-480.0,0.00041095,120]
[381476174,1756230650078,-480.0,0.00041095,120]
[381476176,1756230650088,-480.0,0.00041095,120]
[381476178,1756230650097,-480.0,0.00041095,120]
[381476180,1756230650107,-480.0,0.00041095,120]
[381476182,1756230650116,-480.0,0.00041095,120]
[381476184,1756230650125,-480.0,0.00041095,120]
[381476186,1756230650135,-480.0,0.00041095,120]
[381476188,1756230650144,-480.43118172,0.00041095,120]
[381476190,1756230650155,-480.0,0.00041095,120]
[381476192,1756230650164,-480.0,0.00041095,120]
[381476194,1756230650173,-480.0,0.00041095,120]
[381476196,1756230650182,-480.0,0.00041095,120]
[381476198,1756230650192,-480.0,0.00041095,120]
[381476200,1756230650202,-480.0,0.00041095,120]
[381476202,1756230650211,-480.0,0.00041095,120]
[381476204,1756230650220,-480.0,0.00041095,120]
[381476206,1756230650230,-480.0,0.00041095,120]
[381476208,1756230650239,-480.0,0.00041095,120]
[381476210,1756230650248,-734.43,0.00041095,120]
[381476212,1756230650258,-480.0,0.00041095,120]
[381476214,1756230650267,-480.0,0.00041095,120]
[381476216,1756230650277,-453.15766334,0.00041095,120]
[381476218,1756230650287,-480.0,0.00041095,120]
[381476220,1756230650297,-480.0,0.00041095,120]
[381476222,1756230650306,-480.0,0.00041095,120]
[381476224,1756230650316,-480.0,0.00041095,120]
[381476226,1756230650325,-480.0,0.00041095,120]
[381476228,1756230650334,-480.0,0.00041095,120]
[381476230,1756230650344,-549.14,0.00041095,120]
[381476232,1756230650354,-480.0,0.00041095,120]
[381476234,1756230650363,-480.0,0.00041095,120]
[381476236,1756230650373,-480.0,0.00041095,7]
[381476238,1756230650383,-480.67440844,0.00041095,120]
[381476240,1756230650393,-480.0,0.00041095,120]
[381476242,1756230650402,-783.55,0.00041095,120]
[381476244,1756230650414,-480.0,0.00041095,120]
[381476246,1756230650423,-480.0,0.00041095,120]
[381476248,1756230650433,-496.99,0.00041095,120]
[381476250,1756230650443,-480.0,0.00041095,120]
[381476252,1756230650452,-480.0,0.00041095,120]
[381476254,1756230650462,-1251.89,0.00041095,120]
[381476256,1756230650471,-480.0,0.00041095,120]
[381476264,1756230650535,-480.0,0.00041095,120]
[381476266,1756230650544,-745.84,0.00041095,120]
[381476268,1756230650553,-510.29,0.00041095,120]
[381476270,1756230650563,-480.0,0.00041095,120]
[381476271,1756230650572,-461.29968881,0.00041095,120]
[381476273,1756230650582,-480.0,0.00041095,120]
[381476275,1756230650591,-480.0,0.00041095,120]
[381476277,1756230650600,-480.0,0.00041095,120]
[381476279,1756230650609,-480.0,0.00041095,120]
[381476281,1756230650618,-480.0,0.00041095,120]
[381476283,1756230650627,-480.0,0.00041095,120]
[381476285,1756230650641,-480.0,0.00041095,120]
[381476287,1756230650651,-480.0,0.00041095,120]
[381476289,1756230650662,-480.0,0.00041095,120]
[381476290,1756230650671,-480.0,0.00041095,120]
[381476292,1756230650682,-480.0,0.00041095,120]
[381476294,1756230650691,-480.0,0.00041095,120]
[381476296,1756230650700,-503.22,0.00041095,120]
[381476298,1756230650709,-442.43672309,0.00041095,120]
[381476300,1756230650720,-480.0,0.00041095,120]
[381476302,1756230650730,-480.0,0.00041095,120]
[381476304,1756230650740,-480.0,0.00041095,120]
[381476306,1756230650749,-480.0,0.00041095,120]
[381476308,1756230650758,-480.67387012,0.00041095,120]
[381476310,1756230650767,-480.0,0.00041095,120]
[381476312,1756230650776,-480.0,0.00041095,120]
[381476314,1756230650786,-480.0,0.00041095,120]
[381476316,1756230650795,-480.0,0.00041095,120]
[381476318,1756230650804,-480.0,0.00041095,120]
[381476319,1756230650815,-480.0,0.00041095,120]
[381476321,1756230650824,-480.0,0.00041095,120]
[381476323,1756230650833,-480.0,0.00041095,120]
[381476325,1756230650842,-480.0,0.00041095,30]
[381476327,1756230650852,-480.0,0.00041095,120]
[381476329,1756230650862,-480.0,0.00041095,120]
[381476331,1756230650871,-480.0,0.00041095,120]
[381476333,1756230650880,-480.18,0.00041095,120]
[381476335,1756230650889,-480.0,0.00041095,120]
[381476337,1756230650898,-480.0,0.00041095,120]
[381476339,1756230650908,-480.52215985,0.00041095,120]
[381476341,1756230650917,-480.7654169,0.00041095,120]
[381476343,1756230650927,-480.0,0.00041095,120]
[381476345,1756230650936,-480.0,0.00041095,120]
[381476347,1756230650945,-480.0,0.00041095,120]
[381476349,1756230650955,-851.7,0.00041095,120]
[381476350,1756230650964,-480.0,0.00041095,120]
[381476352,1756230650974,-614.57,0.00041095,120]
[381476354,1756230650983,-480.0,0.00041095,120]
[381476356,1756230650992,-480.0,0.00041095,120]
[381476358,1756230651001,-480.0,0.00041095,120]
[381476360,1756230651011,-480.0,0.00041095,120]
[381476362,1756230651020,-480.0,0.00041095,120]
[381476364,1756230651029,-480.0,0.00041095,120]
[381476366,1756230651039,-480.0,0.00041095,120]
[381476368,1756230651048,-480.0,0.00041095,120]
[381476370,1756230651057,-580.79,0.00041095,120]
[381476372,1756230651067,-199.91336216,0.00041095,120]
[381476374,1756230651076,-641.76,0.00041095,120]
[381476376,1756230651085,-523.02829222,0.00041095,120]
[381476378,1756230651094,-480.0,0.00041095,120]
[381476380,1756230651104,-235.78488301,0.00041095,120]
[381476382,1756230651113,-480.54707857,0.00041095,120]
[381476383,1756230651122,-480.0,0.00041095,120]
[381476385,1756230651131,-480.0,0.00041095,120]
[381476387,1756230651141,-480.0,0.00041095,120]
[381476389,1756230651151,-480.0,0.00041095,120]
[381476391,1756230651161,-527.08301866,0.00041095,120]
[381476393,1756230651171,-480.0,0.00041095,120]
[381476395,1756230651180,-480.0,0.00041095,120]
[381476397,1756230651189,-480.0,0.00041095,120]
[381476399,1756230651199,-480.0,0.00041095,120]
[381476401,1756230651208,-480.0,0.00041095,120]
[381476403,1756230651217,-480.0,0.00041095,120]
[381476405,1756230651226,-480.0,0.00041095,120]
[381476407,1756230651235,-480.0,0.00041095,120]
[381476430,1756230651451,-480.0,0.00041095,120]
[381476432,1756230651461,-480.0,0.00041095,120]
[381476434,1756230651470,-480.0,0.00041095,120]
[381476436,1756230651479,-480.0,0.00041095,120]
[381476438,1756230651489,-480.0,0.00041095,120]
[381476440,1756230651498,-497.75,0.00041095,120]
[381476441,1756230651507,-480.0,0.00041095,120]
[381476443,1756230651517,-480.0,0.00041095,120]
[381476445,1756230651526,-551.68,0.00041095,120]
[381476447,1756230651535,-480.0,0.00041095,120]
[381476449,1756230651544,-480.57684548,0.00041095,120]
[381476451,1756230651553,-480.0,0.00041095,90]
[381476453,1756230651563,-480.0,0.00041095,120]
[381476455,1756230651574,-480.0,0.00041095,120]
[381476457,1756230651583,-480.0,0.00041095,120]
[381476459,1756230651592,-480.0,0.00041095,120]
[381476461,1756230651602,-480.0,0.00041095,120]
[381476463,1756230651611,-480.0,0.00041095,120]
[381476465,1756230651620,-480.0,0.00041095,120]
[381476467,1756230651629,-12941.14,0.00041095,120]
[381476469,1756230651643,-480.0,0.00041095,120]
[381476471,1756230651651,-480.0,0.00041095,120]
[381476473,1756230651661,-480.0,0.00041095,120]
[381476475,1756230651671,-480.0,0.00041095,120]
[381476477,1756230651680,-480.0,0.00041095,120]
[381476479,1756230651689,-480.0,0.00041095,120]
[381476481,1756230651698,-858.92,0.00041095,120]
[381476482,1756230651708,-562.39,0.00041095,120]
[381476484,1756230651718,-480.0,0.00041095,120]
[381476486,1756230651727,-480.0,0.00041095,120]
[381476488,1756230651736,-480.0,0.00041095,120]
[381476490,1756230651746,-480.0,0.00041095,120]
[381476492,1756230651755,-481.60022602,0.00041095,120]
[381476494,1756230651764,-528.12906361,0.00041095,120]
[381476496,1756230651773,-480.0,0.00041095,120]
[381476498,1756230651783,-480.0,0.00041095,120]
[381476500,1756230651792,-480.0,0.00041095,120]
[381476502,1756230651803,-481.58960665,0.00041095,120]
[381476504,1756230651812,-480.0,0.00041095,120]
[381476506,1756230651821,-2128.53,0.00041095,30]
[381476508,1756230651830,-480.0,0.00041095,120]
[381476510,1756230651839,-480.0,0.00041095,120]
[381476512,1756230651849,-480.0,0.00041095,120]
[381476514,1756230651858,-480.0,0.00041095,120]
[381476516,1756230651867,-1459.14,0.00041095,120]
[381476518,1756230651878,-155.41238029,0.00041095,120]
[381476520,1756230651887,-480.0,0.00041095,120]
[381476521,1756230651896,-480.0,0.00041095,120]
[381476523,1756230651907,-480.0,0.00041095,120]
[381476525,1756230651916,-480.0,0.00041095,120]
[381476527,1756230651926,-480.0,0.00041095,120]
[381476529,1756230651936,-480.0,0.00041095,120]
[381476531,1756230651946,-480.0,0.00041095,120]
[381476533,1756230651956,-480.0,0.00041095,120]
[381476535,1756230651965,-2928.56,0.00041095,120]
[381476537,1756230651974,-480.0,0.00041095,120]
[381476539,1756230651984,-480.0,0.00041095,120]
[381476541,1756230651994,-480.0,0.00041095,120]
[381476542,1756230652003,-480.0,0.00041095,120]
[381476543,1756230652012,-500.0,0.00041095,120]
[381476544,1756230652022,-500.0,0.00041095,120]
[381476545,1756230652031,-500.0,0.00041095,120]
[381476546,1756230652040,-500.0,0.00041095,120]
[381476547,1756230652049,-500.0,0.00041095,120]
[381476548,1756230652058,-500.0,0.00041095,120]
[381476549,1756230652068,-500.0,0.00041095,120]
[381476550,1756230652077,-500.0,0.00041095,120]
[381476551,1756230652088,-500.0,0.00041095,120]
[381476552,1756230652097,-500.0,0.00041095,120]
[381476553,1756230652106,-500.0,0.00041095,120]
[381476554,1756230652115,-517.46921102,0.00041095,120]
[381476555,1756230652125,-480.0,0.00041095,120]
[381476556,1756230652134,-480.0,0.00041095,120]
[381476557,1756230652143,-480.0,0.00041095,120]
[381476558,1756230652152,-545.54,0.00041095,120]
[381476559,1756230652161,-480.0,0.00041095,120]
[381476560,1756230652170,-480.0,0.00041095,120]
[381476561,1756230652179,-480.0,0.00041095,120]
[381476562,1756230652190,-480.0,0.00041095,120]
[381476563,1756230652199,-480.0,0.00041095,120]
[381476564,1756230652208,-480.0,0.00041095,120]
[381476565,1756230652217,-480.0,0.00041095,120]
[381476566,1756230652226,-480.0,0.00041095,120]
[381476567,1756230652236,-578.11,0.00041095,120]
[381476568,1756230652244,-460.36883285,0.00041095,120]
[381476569,1756230652254,-480.0,0.00041095,120]
[381476570,1756230652263,-480.0,0.00041095,120]
[381476571,1756230652272,-790.09,0.00041095,120]
[381476572,1756230652281,-480.0,0.00041095,120]
[381476573,1756230652290,-480.32404673,0.00041095,120]
[381476574,1756230652299,-480.0,0.00041095,120]
[381476576,1756230652310,-837.13,0.00041095,120]
[381476577,1756230652319,-480.0,0.00041095,120]
[381476578,1756230652328,-480.0,0.00041095,120]
[381476579,1756230652338,-602.09,0.00041095,120]
[381476580,1756230652347,-480.0,0.00041095,120]
[381476581,1756230652356,-480.0,0.00041095,120]
[381476583,1756230652366,-480.0,0.00041095,120]
[381476585,1756230652377,-480.0,0.00041095,120]
[381476587,1756230652386,-379.32324884,0.00041095,30]
[381476589,1756230652396,-480.0,0.00041095,120]
[381476591,1756230652405,-480.0,0.00041095,120]
[381476593,1756230652415,-512.19,0.00041095,120]
[381476595,1756230652425,-524.37,0.00041095,120]
[381476597,1756230652435,-480.0,0.00041095,120]
[381476599,1756230652445,-480.0,0.00041095,120]
[381476601,1756230652457,-480.0,0.00041095,120]
[381476603,1756230652467,-500.0,0.00041095,120]
[381476605,1756230652476,-480.0,0.00041095,120]
[381476607,1756230652485,-500.0,0.00041095,120]
[381476609,1756230652495,-188.85679542,0.00041095,120]
[381476611,1756230652505,-480.0,0.00041095,120]
[381476613,1756230652514,-1229.67,0.00041095,120]
[381476615,1756230652524,-480.0,0.00041095,120]
[381476617,1756230652533,-480.0,0.00041095,120]
[381476619,1756230652543,-480.0,0.00041095,120]
[381476621,1756230652553,-480.0,0.00041095,120]
[381476623,1756230652562,-630.15,0.00041095,120]
[381476625,1756230652572,-480.0,0.00041095,120]
[381476627,1756230652581,-480.0,0.00041095,120]
[381476629,1756230652590,-480.0,0.00041095,120]
[381476631,1756230652600,-1186.86,0.00041095,120]
[381476633,1756230652610,-480.0,0.00041095,120]
[381476635,1756230652619,-485.88,0.00041095,120]
[381476637,1756230652629,-480.0,0.00041095,120]
[381476639,1756230652641,-486.48,0.00041095,120]
[381476641,1756230652650,-480.0,0.00041095,120]
[381476643,1756230652661,-506.47,0.00041095,120]
[381476645,1756230652671,-656.83,0.00041095,120]
[381476647,1756230652681,-1251.33,0.00041095,120]
[381476649,1756230652691,-480.0,0.00041095,120]
[381476651,1756230652701,-480.0,0.00041095,120]
[381476653,1756230652711,-496.21,0.00041095,120]
[381476655,1756230652722,-480.0,0.00041095,120]
[381476657,1756230652732,-480.0,0.00041095,120]
[381476659,1756230652741,-480.0,0.00041095,120]
[381476661,1756230652751,-480.0,0.00041095,120]
[381476663,1756230652761,-543.21,0.00041095,120]
[381476665,1756230652771,-480.0,0.00041095,120]
[381476667,1756230652781,-480.0,0.00041095,120]
[381476669,1756230652790,-480.0,0.00041095,120]
[381476671,1756230652800,-480.0,0.00041095,120]
[381476673,1756230652810,-480.0,0.00041095,120]
[381476675,1756230652819,-480.0,0.00041095,120]
[381476677,1756230652829,-480.0,0.00041095,120]
[381476679,1756230652839,-480.0,0.00041095,120]
[381476681,1756230652848,-480.0,0.00041095,120]
[381476683,1756230652858,-480.0,0.00041095,120]
[381476685,1756230652868,-480.0,0.00041095,120]
[381476687,1756230652877,-565.5,0.00041095,120]
[381476689,1756230652887,-1183.37,0.00041095,120]
[381476691,1756230652897,-480.0,0.00041095,120]
[381476693,1756230652907,-480.0,0.00041095,120]
[381476695,1756230652916,-523.13,0.00041095,120]
[381476697,1756230652926,-480.0,0.00041095,120]
[381476699,1756230652936,-480.0,0.00041095,120]
[381476701,1756230652945,-10775.09,0.00041095,120]
[381476704,1756230652956,-480.0,0.00041095,120]
[381476706,1756230652965,-480.0,0.00041095,120]
[381476708,1756230652975,-480.0,0.00041095,120]
[381476710,1756230652984,-526.23,0.00041095,120]
[381476712,1756230652994,-480.0,0.00041095,120]
[381476714,1756230653005,-682.23,0.00041095,120]
[381476716,1756230653014,-480.0,0.00041095,120]
[381476718,1756230653024,-480.0,0.00041095,120]
[381476720,1756230653033,-480.0,0.00041095,120]
[381476722,1756230653043,-480.0,0.00041095,120]
[381476724,1756230653053,-515.91,0.00041095,120]
[381476726,1756230653063,-480.0,0.00041095,120]
[381476728,1756230653073,-480.0,0.00041095,120]
[381476730,1756230653083,-480.0,0.00041095,2]
[381476732,1756230653092,-480.0,0.00041095,120]
[381476734,1756230653102,-480.0,0.00041095,120]
[381476736,1756230653112,-480.0,0.00041095,120]
[381476738,1756230653122,-480.0,0.00041095,120]
[381476740,1756230653131,-480.0,0.00041095,120]
[381476742,1756230653141,-646.6,0.00041095,120]